fUSD/lending_fUSD_20260528
["ID","MTS","AMOUNT","RATE_DAILY","PERIOD"]
[423232327,1779963053000,-2506.78,0.00036952,10]
[423232320,1779963053000,-350.0,0.00036849,5]
[423232317,1779963053000,-5000.0,0.00036814,10]
[423232319,1779963053000,-150.0,0.00036843,7]
[423232321,1779963053000,-150.0,0.0003688,2]
[423232323,1779963053000,-151.0,0.000369,2]
[423232324,1779963053000,-181.45556741,0.000369,5]
[423232325,1779963053000,-5000.0,0.00036902,10]
[423232322,1779963053000,-167.3,0.000369,120]
[423232328,1779963053000,-2513.81,0.00036956,10]
[423232329,1779963053000,-253.510831,0.00036999,120]
[423232318,1779963053000,-69759.0064,0.00036833,30]
[423232352,1779963053000,-804.700104,0.00037693,120]
[423232341,1779963053000,-150.0,0.00037393,7]
[423232358,1779963053000,-185.0,0.00037808,15]
[423232381,1779963053000,-291.98015107,0.000381,33]
[423232380,1779963053000,-2317.0,0.00038073,11]
[423232383,1779963053000,-2820.4,0.00038125,30]
[423232386,1779963053000,-150.0,0.00038356,120]
[423232385,1779963053000,-167.71,0.00038356,60]
[423232384,1779963053000,-150.0,0.00038218,7]
[423232382,1779963053000,-4246.9967,0.00038118,30]
[423232388,1779963053000,-160.581762,0.00038356,30]
[423232387,1779963053000,-176.202422,0.00038356,30]
[423232389,1779963053000,-169.394391,0.00038356,30]
[423232392,1779963053000,-151.0,0.00038356,30]
[423232393,1779963053000,-151.0,0.00038356,30]
[423232395,1779963053000,-151.0,0.00038356,30]
[423232394,1779963053000,-151.0,0.00038356,30]
[423232399,1779963053000,-151.0,0.00038356,30]
[423232398,1779963053000,-151.0,0.00038356,30]
[423232391,1779963053000,-151.449034,0.00038356,30]
[423232400,1779963053000,-151.0,0.00038356,30]
[423232396,1779963053000,-151.0,0.00038356,30]
[423232397,1779963053000,-244.504656,0.00038356,30]
[423232354,1779963053000,-500.0,0.00037693,120]
[423232376,1779963053000,-8750.0,0.00038,30]
[423232377,1779963053000,-850.0,0.00038,2]
[423232390,1779963053000,-260.962495,0.00038356,30]
[423232379,1779963053000,-2317.0,0.00038073,11]
[423232355,1779963053000,-777.7430355,0.00037693,120]
[423232375,1779963053000,-448.33,0.00038,120]
[423232356,1779963053000,-199.8957445,0.00037693,120]
[423232357,1779963053000,-154.86,0.00037745,60]
[423232367,1779963053000,-3119.68278933,0.00037999,2]
[423232363,1779963053000,-167.3,0.000379,120]
[423232365,1779963053000,-150.0,0.00037943,7]
[423232364,1779963053000,-317.61154429,0.000379,120]
[423232362,1779963053000,-5162.64,0.00037885,14]
[423232361,1779963053000,-206.00727526,0.0003788,2]
[423232366,1779963053000,-154.90125197,0.00037945,60]
[423232368,1779963053000,-153.0,0.00038,120]
[423232360,1779963053000,-150.0,0.00037852,7]
[423232371,1779963053000,-235.49657547,0.00038,30]
[423232359,1779963053000,-154.86,0.00037845,60]
[423232378,1779963053000,-165.0,0.00038073,11]
[423232374,1779963053000,-500.0,0.00038,14]
[423232372,1779963053000,-200.51,0.00038,120]
[423232373,1779963053000,-424.75642,0.00038,120]
[423232370,1779963053000,-238854.2276176,0.00038,2]
[423232401,1779963053000,-1114.908883,0.00038356,2]
[423232369,1779963053000,-155.0,0.00038,120]
[423232437,1779963054000,-151.0,0.00038356,30]
[423232424,1779963054000,-314.831798,0.00038356,30]
[423232433,1779963054000,-207.993118,0.00038356,30]
[423232432,1779963054000,-151.0,0.00038356,30]
[423232431,1779963054000,-151.0,0.00038356,30]
[423232429,1779963054000,-151.0,0.00038356,30]
[423232428,1779963054000,-314.831798,0.00038356,30]
[423232435,1779963054000,-207.993118,0.00038356,30]
[423232434,1779963054000,-207.993118,0.00038356,30]
[423232436,1779963054000,-207.993118,0.00038356,30]
[423232447,1779963054000,-151.0,0.00038356,30]
[423232439,1779963054000,-218.694713,0.00038356,30]
[423232440,1779963054000,-151.0,0.00038356,30]
[423232441,1779963054000,-151.0,0.00038356,30]
[423232443,1779963054000,-1191.353306,0.00038356,30]
[423232444,1779963054000,-1191.353306,0.00038356,30]
[423232446,1779963054000,-302.22151,0.00038356,30]
[423232445,1779963054000,-1191.353306,0.00038356,30]
[423232448,1779963054000,-302.22151,0.00038356,30]
[423232430,1779963054000,-151.0,0.00038356,30]
[423232438,1779963054000,-168.22762926,0.00038356,2]
[423232427,1779963054000,-151.0,0.00038356,30]
[423232404,1779963054000,-1114.908883,0.00038356,2]
[423232425,1779963054000,-151.0,0.00038356,30]
[423232450,1779963054000,-645.81,0.00038356,120]
[423232403,1779963054000,-1114.908883,0.00038356,2]
[423232405,1779963054000,-151.0,0.00038356,30]
[423232406,1779963054000,-151.0,0.00038356,30]
[423232408,1779963054000,-151.0,0.00038356,30]
[423232402,1779963054000,-1114.908883,0.00038356,2]
[423232409,1779963054000,-334.050721,0.00038356,30]
[423232411,1779963054000,-334.050721,0.00038356,30]
[423232410,1779963054000,-436.171784,0.00038356,30]
[423232407,1779963054000,-151.0,0.00038356,30]
[423232426,1779963054000,-314.831798,0.00038356,30]
[423232412,1779963054000,-436.171784,0.00038356,30]
[423232413,1779963054000,-334.050721,0.00038356,30]
[423232418,1779963054000,-252.027433,0.00038356,30]
[423232422,1779963054000,-151.0,0.00038356,30]
[423232416,1779963054000,-436.171784,0.00038356,30]
[423232415,1779963054000,-334.050721,0.00038356,30]
[423232414,1779963054000,-436.171784,0.00038356,30]
[423232419,1779963054000,-151.0,0.00038356,30]
[423232421,1779963054000,-151.0,0.00038356,30]
[423232417,1779963054000,-281.975663,0.00038356,30]
[423232423,1779963054000,-314.831798,0.00038356,30]
[423232420,1779963054000,-151.0,0.00038356,30]
[423232449,1779963054000,-151.0,0.00038356,30]
[423232442,1779963054000,-1191.353306,0.00038356,30]
[423232452,1779963054000,-1202.0,0.00038393,11]
[423232480,1779963054000,-35235.0,0.000388,30]
[423232479,1779963054000,-1000.56258033,0.000388,10]
[423232483,1779963054000,-15924.983325,0.000389,2]
[423232485,1779963054000,-155.0,0.00038904,120]
[423232482,1779963054000,-1646.14378815,0.0003888,60]
[423232490,1779963054000,-1272.0,0.00038921,2]
[423232484,1779963054000,-167.3,0.000389,120]
[423232487,1779963054000,-183.56,0.00038904,10]
[423232481,1779963054000,-12702.12563788,0.00038834,2]
[423232486,1779963054000,-201.6,0.00038904,10]
[423232477,1779963054000,-3637.0,0.00038791,2]
[423232488,1779963054000,-207.265,0.00038921,2]
[423232493,1779963054000,-1078.0,0.00039,2]
[423232494,1779963054000,-1468.0,0.00039,2]
[423232495,1779963054000,-265.0,0.00039,2]
[423232492,1779963054000,-151.0,0.00038945,4]
[423232499,1779963054000,-241.1943074,0.00039,90]
[423232497,1779963054000,-10931.87878828,0.00039,2]
[423232498,1779963054000,-362.22946218,0.00039,60]
[423232496,1779963054000,-31361.09898067,0.00039,2]
[423232500,1779963054000,-2500.0,0.00039,2]
[423232457,1779963054000,-150.0,0.00038493,7]
[423232491,1779963054000,-525.0,0.00038921,2]
[423232475,1779963054000,-190.63,0.0003869,120]
[423232489,1779963054000,-1131.734,0.00038921,2]
[423232472,1779963054000,-221.06679904,0.00038673,11]
[423232454,1779963054000,-219.03526685,0.00038411,120]
[423232478,1779963054000,-164.0,0.00038798,11]
[423232456,1779963054000,-2317.0,0.00038423,11]
[423232453,1779963054000,-288.68819543,0.00038411,120]
[423232451,1779963054000,-330.0,0.00038382,50]
[423232455,1779963054000,-153.03669372,0.00038411,120]
[423232460,1779963054000,-150.0,0.00038493,7]
[423232459,1779963054000,-203.05475875,0.00038493,7]
[423232465,1779963054000,-153.0,0.000386,120]
[423232467,1779963054000,-2050.974,0.00038627,52]
[423232466,1779963054000,-389.59,0.000386,120]
[423232458,1779963054000,-150.0,0.00038493,7]
[423232464,1779963054000,-1456.98,0.00038529,30]
[423232461,1779963054000,-172.86437132,0.00038493,7]
[423232468,1779963054000,-2676.2479,0.0003864,30]
[423232462,1779963054000,-247.55271106,0.00038493,7]
[423232463,1779963054000,-82590.22325603,0.000385,3]
[423232469,1779963054000,-221.06679908,0.00038673,11]
[423232470,1779963054000,-221.06679904,0.00038673,11]
[423232471,1779963054000,-221.06679904,0.00038673,11]
[423232473,1779963054000,-221.06679904,0.00038673,11]
[423232474,1779963054000,-168.4,0.0003869,120]
[423232476,1779963054000,-150.0,0.00038724,2]
[423232539,1779963055000,-1515.54320016,0.000394,30]
[423232540,1779963055000,-1515.54320016,0.000394,30]
[423232543,1779963055000,-1515.54320016,0.000394,30]
[423232537,1779963055000,-6119.03088,0.000394,2]
[423232538,1779963055000,-1515.54320016,0.000394,30]
[423232534,1779963055000,-349.75134398,0.0003934,7]
[423232530,1779963055000,-998.03,0.00039243,120]
[423232532,1779963055000,-227.3,0.000393,31]
[423232533,1779963055000,-153.0,0.000393,120]
[423232542,1779963055000,-1515.54320016,0.000394,30]
[423232531,1779963055000,-15930.31968477,0.00039281,15]
[423232541,1779963055000,-1515.54320016,0.000394,30]
[423232551,1779963055000,-156.670372,0.0003949,30]
[423232544,1779963055000,-1515.54320016,0.000394,30]
[423232547,1779963055000,-4027.67830062,0.00039475,120]
[423232546,1779963055000,-349.75134398,0.00039441,7]
[423232549,1779963055000,-151.0,0.00039487,14]
[423232550,1779963055000,-434743.74366522,0.0003949,2]
[423232552,1779963055000,-151.0,0.0003949,30]
[423232554,1779963055000,-151.0,0.0003949,30]
[423232553,1779963055000,-151.0,0.0003949,30]
[423232548,1779963055000,-646.45,0.00039484,2]
[423232555,1779963055000,-151.0,0.0003949,30]
[423232557,1779963055000,-151.0,0.0003949,30]
[423232529,1779963055000,-349.75134398,0.00039237,7]
[423232545,1779963055000,-1515.5,0.000394,30]
[423232535,1779963055000,-163.0,0.00039353,11]
[423232556,1779963055000,-151.0,0.0003949,30]
[423232526,1779963055000,-2845.33103828,0.00039004,30]
[423232501,1779963055000,-25130.57,0.00039,83]
[423232502,1779963055000,-1912.42,0.00039,120]
[423232505,1779963055000,-278323.0,0.00039,2]
[423232504,1779963055000,-244.63343923,0.00039,120]
[423232503,1779963055000,-20000.0,0.00039,2]
[423232512,1779963055000,-8019.0,0.00039,2]
[423232508,1779963055000,-1300.0,0.00039,2]
[423232509,1779963055000,-1300.0,0.00039,2]
[423232511,1779963055000,-1300.0,0.00039,2]
[423232507,1779963055000,-1300.0,0.00039,2]
[423232510,1779963055000,-1300.0,0.00039,2]
[423232513,1779963055000,-164.26690956,0.00039,120]
[423232528,1779963055000,-10000.0,0.00039204,2]
[423232515,1779963055000,-820.46490543,0.00039,10]
[423232524,1779963055000,-1000.0,0.00039003,2]
[423232514,1779963055000,-100303.89602334,0.00039,10]
[423232517,1779963055000,-764.0,0.00039,30]
[423232521,1779963055000,-1000.0,0.00039003,2]
[423232518,1779963055000,-374.0,0.00039,2]
[423232523,1779963055000,-1000.0,0.00039003,2]
[423232519,1779963055000,-3823.0,0.00039,2]
[423232520,1779963055000,-1000.0,0.00039003,2]
[423232522,1779963055000,-1000.0,0.00039003,2]
[423232536,1779963055000,-687.0,0.00039363,11]
[423232525,1779963055000,-1170.78962941,0.00039003,2]
[423232527,1779963055000,-1634.46058939,0.0003919,120]
[423232516,1779963055000,-494.59,0.00039,30]
[423232558,1779963055000,-151.0,0.0003949,30]
[423232506,1779963055000,-740.64259206,0.00039,14]
[423232570,1779963055000,-1114.908883,0.0003949,2]
[423232590,1779963055000,-436.171784,0.0003949,30]
[423232591,1779963055000,-334.050721,0.0003949,30]
[423232588,1779963055000,-334.050721,0.0003949,30]
[423232589,1779963055000,-170.359846,0.0003949,30]
[423232597,1779963055000,-3093.650277,0.0003949,28]
[423232598,1779963055000,-151.0,0.0003949,30]
[423232606,1779963055000,-262.201873,0.0003949,30]
[423232596,1779963055000,-3093.650277,0.0003949,28]
[423232607,1779963055000,-578.533476,0.0003949,30]
[423232608,1779963055000,-262.201873,0.0003949,30]
[423232599,1779963055000,-151.0,0.0003949,30]
[423232601,1779963055000,-578.533476,0.0003949,30]
[423232592,1779963055000,-170.359846,0.0003949,30]
[423232600,1779963055000,-164.063804,0.0003949,30]
[423232604,1779963055000,-262.201873,0.0003949,30]
[423232605,1779963055000,-578.533476,0.0003949,30]
[423232603,1779963055000,-578.533476,0.0003949,30]
[423232610,1779963055000,-649.126519,0.0003949,30]
[423232609,1779963055000,-151.0,0.0003949,30]
[423232612,1779963055000,-649.126519,0.0003949,30]
[423232614,1779963055000,-151.0,0.0003949,30]
[423232611,1779963055000,-649.126519,0.0003949,30]
[423232613,1779963055000,-151.0,0.0003949,30]
[423232616,1779963055000,-151.0,0.0003949,30]
[423232615,1779963055000,-649.126519,0.0003949,30]
[423232617,1779963055000,-328.19836,0.0003949,30]
[423232602,1779963055000,-262.201873,0.0003949,30]
[423232593,1779963055000,-436.171784,0.0003949,30]
[423232559,1779963055000,-151.0,0.0003949,30]
[423232586,1779963055000,-170.359846,0.0003949,30]
[423232594,1779963055000,-3093.650277,0.0003949,28]
[423232571,1779963055000,-1114.908883,0.0003949,2]
[423232562,1779963055000,-445.94882,0.0003949,30]
[423232569,1779963055000,-151.0,0.0003949,30]
[423232563,1779963055000,-445.94882,0.0003949,30]
[423232568,1779963055000,-1114.908883,0.0003949,2]
[423232565,1779963055000,-151.0,0.0003949,30]
[423232567,1779963055000,-151.0,0.0003949,30]
[423232561,1779963055000,-445.94882,0.0003949,30]
[423232566,1779963055000,-151.0,0.0003949,30]
[423232564,1779963055000,-151.0,0.0003949,30]
[423232572,1779963055000,-1114.908883,0.0003949,2]
[423232583,1779963055000,-170.359846,0.0003949,30]
[423232560,1779963055000,-445.94882,0.0003949,30]
[423232575,1779963055000,-151.0,0.0003949,30]
[423232573,1779963055000,-151.0,0.0003949,30]
[423232595,1779963055000,-3093.650277,0.0003949,28]
[423232587,1779963055000,-436.171784,0.0003949,30]
[423232584,1779963055000,-436.171784,0.0003949,30]
[423232585,1779963055000,-334.050721,0.0003949,30]
[423232579,1779963055000,-153.374982,0.0003949,30]
[423232580,1779963055000,-151.0,0.0003949,30]
[423232578,1779963055000,-151.0,0.0003949,30]
[423232582,1779963055000,-334.050721,0.0003949,30]
[423232577,1779963055000,-151.0,0.0003949,30]
[423232576,1779963055000,-151.0,0.0003949,30]
[423232574,1779963055000,-151.0,0.0003949,30]
[423232581,1779963055000,-151.0,0.0003949,30]
[423232655,1779963056000,-752.025395,0.0003949,30]
[423232657,1779963056000,-246.725308,0.0003949,30]
[423232662,1779963056000,-151.0,0.0003949,30]
[423232653,1779963056000,-752.025395,0.0003949,30]
[423232651,1779963056000,-151.0,0.0003949,30]
[423232647,1779963056000,-151.0,0.0003949,30]
[423232648,1779963056000,-207.993118,0.0003949,30]
[423232649,1779963056000,-207.993118,0.0003949,30]
[423232650,1779963056000,-207.993118,0.0003949,30]
[423232656,1779963056000,-246.725308,0.0003949,30]
[423232654,1779963056000,-752.025395,0.0003949,30]
[423232659,1779963056000,-246.725308,0.0003949,30]
[423232675,1779963056000,-152.4572763,0.000395,120]
[423232658,1779963056000,-151.0,0.0003949,30]
[423232661,1779963056000,-246.725308,0.0003949,30]
[423232674,1779963056000,-353.4263,0.000395,60]
[423232673,1779963056000,-1512.08211566,0.000395,120]
[423232664,1779963056000,-1191.353306,0.0003949,30]
[423232665,1779963056000,-1191.353306,0.0003949,30]
[423232669,1779963056000,-302.22151,0.0003949,30]
[423232670,1779963056000,-151.0,0.0003949,30]
[423232668,1779963056000,-151.0,0.0003949,30]
[423232667,1779963056000,-302.22151,0.0003949,30]
[423232672,1779963056000,-151.93165196,0.000395,30]
[423232644,1779963056000,-151.0,0.0003949,30]
[423232663,1779963056000,-1191.353306,0.0003949,30]
[423232652,1779963056000,-752.025395,0.0003949,30]
[423232642,1779963056000,-151.0,0.0003949,30]
[423232646,1779963056000,-207.993118,0.0003949,30]
[423232619,1779963056000,-328.19836,0.0003949,30]
[423232618,1779963056000,-328.19836,0.0003949,30]
[423232620,1779963056000,-328.19836,0.0003949,30]
[423232623,1779963056000,-314.831798,0.0003949,30]
[423232627,1779963056000,-151.0,0.0003949,30]
[423232622,1779963056000,-159.436815,0.0003949,30]
[423232624,1779963056000,-314.831798,0.0003949,30]
[423232621,1779963056000,-151.0,0.0003949,30]
[423232630,1779963056000,-151.0,0.0003949,30]
[423232626,1779963056000,-314.831798,0.0003949,30]
[423232628,1779963056000,-151.0,0.0003949,30]
[423232625,1779963056000,-151.0,0.0003949,30]
[423232645,1779963056000,-160.661679,0.0003949,30]
[423232629,1779963056000,-314.831798,0.0003949,30]
[423232671,1779963056000,-155.0,0.000395,120]
[423232631,1779963056000,-151.0,0.0003949,30]
[423232635,1779963056000,-239.459986,0.0003949,7]
[423232634,1779963056000,-239.459986,0.0003949,7]
[423232633,1779963056000,-239.459986,0.0003949,7]
[423232636,1779963056000,-151.0,0.0003949,15]
[423232639,1779963056000,-167.633331,0.0003949,30]
[423232637,1779963056000,-151.0,0.0003949,15]
[423232641,1779963056000,-151.0,0.0003949,30]
[423232638,1779963056000,-151.0,0.0003949,30]
[423232640,1779963056000,-151.0,0.0003949,30]
[423232643,1779963056000,-151.0,0.0003949,30]
[423232632,1779963056000,-239.459986,0.0003949,7]
[423232676,1779963056000,-108470.49527237,0.000395,7]
[423232660,1779963056000,-211.160655,0.0003949,30]
[423232681,1779963056000,-163.57588558,0.00039541,2]
[423232705,1779963056000,-445.94882,0.0003964,30]
[423232707,1779963056000,-445.94882,0.0003964,30]
[423232722,1779963056000,-651.24776144,0.00039641,120]
[423232712,1779963056000,-151.0,0.0003964,30]
[423232724,1779963056000,-151.0,0.00039642,30]
[423232711,1779963056000,-151.0,0.0003964,30]
[423232720,1779963056000,-231.837034,0.0003964,30]
[423232715,1779963056000,-151.0,0.0003964,30]
[423232721,1779963056000,-162.0,0.00039641,120]
[423232713,1779963056000,-151.0,0.0003964,30]
[423232714,1779963056000,-151.0,0.0003964,30]
[423232716,1779963056000,-151.0,0.0003964,30]
[423232723,1779963056000,-151.0,0.00039642,30]
[423232718,1779963056000,-151.0,0.0003964,30]
[423232717,1779963056000,-151.0,0.0003964,30]
[423232719,1779963056000,-151.0,0.0003964,30]
[423232725,1779963056000,-151.0,0.00039642,30]
[423232727,1779963056000,-151.0,0.00039642,30]
[423232726,1779963056000,-151.0,0.00039642,30]
[423232729,1779963056000,-151.0,0.00039642,30]
[423232728,1779963056000,-151.0,0.00039642,30]
[423232732,1779963056000,-151.0,0.00039642,30]
[423232731,1779963056000,-151.0,0.00039642,30]
[423232734,1779963056000,-219.30712701,0.00039648,120]
[423232730,1779963056000,-151.0,0.00039642,30]
[423232733,1779963056000,-282.246337,0.00039642,30]
[423232677,1779963056000,-2019.79,0.000395,90]
[423232709,1779963056000,-445.948814,0.0003964,30]
[423232702,1779963056000,-445.94882,0.0003964,30]
[423232666,1779963056000,-1191.353306,0.0003949,30]
[423232708,1779963056000,-445.94882,0.0003964,30]
[423232701,1779963056000,-445.94882,0.0003964,30]
[423232678,1779963056000,-322.0,0.000395,28]
[423232685,1779963056000,-500.0,0.000396,14]
[423232679,1779963056000,-219.38,0.000395,60]
[423232680,1779963056000,-176.37,0.00039501,2]
[423232683,1779963056000,-178.42505933,0.000396,60]
[423232686,1779963056000,-723.12825122,0.0003964,2]
[423232684,1779963056000,-2576.28095816,0.000396,120]
[423232698,1779963056000,-445.94882,0.0003964,30]
[423232692,1779963056000,-266.4062,0.0003964,30]
[423232690,1779963056000,-154.723305,0.0003964,30]
[423232688,1779963056000,-379.0,0.0003964,120]
[423232687,1779963056000,-723.12825122,0.0003964,2]
[423232682,1779963056000,-208.48,0.00039584,30]
[423232693,1779963056000,-151.0,0.0003964,30]
[423232689,1779963056000,-180.0,0.0003964,120]
[423232703,1779963056000,-445.94882,0.0003964,30]
[423232704,1779963056000,-445.94882,0.0003964,30]
[423232699,1779963056000,-445.94882,0.0003964,30]
[423232700,1779963056000,-445.94882,0.0003964,30]
[423232706,1779963056000,-445.94882,0.0003964,30]
[423232694,1779963056000,-151.0,0.0003964,30]
[423232696,1779963056000,-151.0,0.0003964,30]
[423232697,1779963056000,-241.353687,0.0003964,30]
[423232695,1779963056000,-151.0,0.0003964,30]
[423232691,1779963056000,-151.0,0.0003964,30]
[423232710,1779963056000,-151.0,0.0003964,30]
[423232756,1779963057000,-500.0,0.00039672,120]
[423232742,1779963057000,-500.0,0.00039672,120]
[423232753,1779963057000,-500.0,0.00039672,120]
[423232752,1779963057000,-1000.0,0.00039672,120]
[423232754,1779963057000,-500.0,0.00039672,120]
[423232751,1779963057000,-500.0,0.00039672,120]
[423232744,1779963057000,-500.0,0.00039672,120]
[423232747,1779963057000,-500.0,0.00039672,120]
[423232746,1779963057000,-500.0,0.00039672,120]
[423232743,1779963057000,-500.0,0.00039672,120]
[423232738,1779963057000,-500.0,0.00039672,120]
[423232748,1779963057000,-500.0,0.00039672,120]
[423232741,1779963057000,-500.0,0.00039672,120]
[423232749,1779963057000,-500.0,0.00039672,120]
[423232740,1779963057000,-500.0,0.00039672,120]
[423232750,1779963057000,-500.0,0.00039672,120]
[423232739,1779963057000,-500.0,0.00039672,120]
[423232735,1779963057000,-178.54,0.00039656,120]
[423232736,1779963057000,-500.0,0.00039672,120]
[423232755,1779963057000,-500.0,0.00039672,120]
[423232737,1779963057000,-500.0,0.00039672,120]
[423232745,1779963057000,-500.0,0.00039672,120]
[423232757,1779963057000,-500.0,0.00039672,120]
[423232763,1779963057000,-500.0,0.00039672,120]
[423232759,1779963057000,-500.0,0.00039672,120]
[423232758,1779963057000,-500.0,0.00039672,120]
[423232780,1779963057000,-116.15787174,0.00025082,2]
[423232779,1779963057000,-406.623,0.00024064,2]
[423232781,1779963057000,-385.84212826,0.00025082,2]
[423232775,1779963057000,-418.0,0.00018064,2]
[423232776,1779963057000,-215.50460005,0.00019,30]
[423232777,1779963057000,-418.0,0.00021064,2]
[423232774,1779963057000,-418.0,0.00015064,2]
[423232773,1779963057000,-344.0,0.00039672,65]
[423232772,1779963057000,-6382.46087828,0.00039672,65]
[423232782,1779963057000,-70.24818222,0.00025777,2]
[423232771,1779963057000,-2144.47853725,0.00039672,65]
[423232770,1779963057000,-50000.0,0.00039672,64]
[423232761,1779963057000,-500.0,0.00039672,120]
[423232762,1779963057000,-500.0,0.00039672,120]
[423232760,1779963057000,-500.0,0.00039672,120]
[423232764,1779963057000,-500.0,0.00039672,120]
[423232778,1779963057000,-771.0175,0.00021725,2]
[423232766,1779963057000,-303.40891052,0.00039672,120]
[423232769,1779963057000,-50000.0,0.00039672,63]
[423232768,1779963057000,-50000.0,0.00039672,62]
[423232765,1779963057000,-306.03924541,0.00039672,120]
[423232767,1779963057000,-50000.0,0.00039672,61]
[423232783,1779963402000,202.0,0.00011,3]
[423232784,1779963557000,-500.0,0.000121,30]
[423232785,1779963569000,-500.0,0.000121,30]
[423232786,1779963746000,1390.57279651,9.04e-05,2]
[423232787,1779963863000,-174.85,0.00011309,2]
[423232788,1779963884000,-29.76862689,0.000121,30]
[423232789,1779964034000,-302.21282063,0.0001244,2]
[423232790,1779964034000,-227.84436087,0.00013379,2]
[423232791,1779964173000,-200.0,0.00013167,2]
[423232793,1779964226000,-245.56532551,0.00013237,2]
[423232805,1779964231000,-8073.70803725,0.00013238,2]
[423232797,1779964231000,-154.83,0.0001273,2]
[423232798,1779964231000,-230.17293256,0.00013237,2]
[423232799,1779964231000,-69.82706744,0.00013237,2]
[423232800,1779964231000,-347.68476232,0.00013237,2]
[423232802,1779964231000,-119.40629819,0.00013238,2]
[423232801,1779964231000,-852.31523768,0.00013237,2]
[423232803,1779964231000,-2490.57914543,0.00013238,2]
[423232804,1779964231000,-700.37599953,0.00013238,2]
[423232806,1779964231000,-1149.99016759,0.00013238,2]
[423232810,1779964231000,-413.48160874,0.00013238,2]
[423232808,1779964231000,-10282.84832172,0.00013238,2]
[423232809,1779964231000,-2649.0,0.00013238,2]
[423232812,1779964231000,-150.0,0.00013288,2]
[423232811,1779964231000,-19380.58933651,0.00013238,2]
[423232813,1779964231000,-500.0,0.00013309,2]
[423232814,1779964231000,-488.89563913,0.00013379,2]
[423232815,1779964231000,-150.0,0.00013487,2]
[423232816,1779964231000,-150.0,0.00013488,2]
[423232807,1779964231000,-1049.24108504,0.00013238,2]
[423232860,1779964232000,-150.0,0.00013862,2]
[423232856,1779964232000,-166.66,0.00013836,2]
[423232857,1779964232000,-150.0,0.0001384,2]
[423232859,1779964232000,-150.0,0.00013862,2]
[423232855,1779964232000,-150.0,0.00013821,2]
[423232851,1779964232000,-3200.41564869,0.00013784,2]
[423232854,1779964232000,-665.47,0.000138,2]
[423232852,1779964232000,-52761.59669719,0.00013784,2]
[423232862,1779964232000,-150.0,0.00013884,2]
[423232858,1779964232000,-150.0,0.00013862,2]
[423232850,1779964232000,-1512.86999631,0.00013784,2]
[423232853,1779964232000,-150.0,0.00013796,2]
[423232861,1779964232000,-467.31355284,0.00013876,2]
[423232869,1779964232000,-250.0,0.00014,2]
[423232863,1779964232000,-150.0,0.00013928,2]
[423232864,1779964232000,-150.0,0.00013973,2]
[423232867,1779964232000,-150.0,0.00013987,2]
[423232848,1779964232000,-1711.23017621,0.00013784,2]
[423232866,1779964232000,-150.0,0.00013987,2]
[423232868,1779964232000,-150.0,0.00013987,2]
[423232870,1779964232000,-200.0,0.00014,2]
[423232871,1779964232000,-500.0,0.00014,5]
[423232872,1779964232000,-150.0,0.00014017,2]
[423232879,1779964232000,-215.50460005,0.00014118,2]
[423232880,1779964232000,-150.0,0.00014149,2]
[423232873,1779964232000,-185.98,0.00014056,2]
[423232865,1779964232000,-166.66,0.00013973,2]